Cogmind - Beta 15 @@@ ROGUE MODE // 2025.08.12 @ 22:20:01 Player: GayPredator Result: Self-destructed Performance ------------- Evolutions (4) 2000 Regions Visited (5) 1000 Robots Destroyed (35) 175 Value Destroyed (737) 737 Prototype IDs (14) 280 Alien Tech Used (0) 0 Bonus (800) 800 TOTAL SCORE: 4992 Bonus ------- Registered with UFD 300 Met Optimus in HQ 500 Cogmind --------- Core Integrity 850/850 Matter 171/300 Energy 240/240 System Corruption 0% Temperature Cool (0) Movement Treading (148) Location -6/Factory Parts ------- > --- POWER (1) -------- Nuclear Core > --- PROPULSION (3) --- Light Treads Advanced Treads Overtuned Treads > --- UTILITY (9) ------ Scrap Suit Large Storage Unit Field Recycling Unit Mapping Drone Bay (3/3) Scrapoid Pod > --- WEAPON (2) ------- High-powered Shock Rifle Subdweller Machine Gun > --- INVENTORY (15) --- Subdweller Monowheel Subdweller Monowheel Scrap Suit Compact Battery (200) Experimental Sensor Array Surveybot 17 Chip Hacking Suite System Shield Improved System Shield Trap Extractor (1/4 Vortex) Subdweller Machine Gun Peak State ------------ > --- POWER ------------ Nuclear Core > --- PROPULSION ------- Light Treads Advanced Treads Overtuned Treads > --- UTILITY ---------- Scrap Suit Large Storage Unit Field Recycling Unit Mapping Drone Bay Cobbler Unit Scrapoid Pod > --- WEAPON ----------- Subdweller Machine Gun Subdweller Machine Gun > --- INVENTORY -------- Subdweller Monowheel Subdweller Monowheel Scrap Suit Compact Battery Experimental Sensor Array Surveybot 17 Chip Hacking Suite System Shield Improved System Shield Trap Extractor [Rating: 51] Favorites ----------- Power Ion Engine Engine Ion Engine Power Core Nuclear Core Propulsion Light Treads Treads Light Treads Utility Large Storage Unit Device Field Recycling Unit Storage Large Storage Unit Protection Hardened Light Armor Plating Weapon Subdweller Machine Gun Energy Gun Medium Laser Ballistic Gun Subdweller Machine Gun Ballistic Cannon Battle Cannon Launcher Grenade Launcher Special Weapon Mining Laser Build | -11 -10 -10 -8 -8 -6 ------- Run | Yrd Mat Sub Rec Scr Fac Slots Evolved 8 | . . . . . 8 Power . | . . . . . . Propulsion 1 | . . . . . 1 Utility 7 | . . . . . 7 Weapon . | . . . . . . Parts Attached 40 | 7 9 9 . 11 4 Power 8 | 1 1 2 . 4 . Engine 6 | 1 1 2 . 2 . Core 2 | . . . . 2 . Reactor . | . . . . . . Propulsion 7 | 2 . 1 . 4 . Treads 7 | 2 . 1 . 4 . Leg . | . . . . . . Wheel . | . . . . . . Hover . | . . . . . . Flight . | . . . . . . Utility 13 | 2 3 2 . 2 4 Device 9 | 1 1 1 . 2 4 Storage 2 | 1 1 . . . . Processor . | . . . . . . Hackware . | . . . . . . Protection 2 | . 1 1 . . . Artifact . | . . . . . . Weapon 12 | 2 5 4 . 1 . Energy Gun 3 | 1 2 . . . . Energy Cannon . | . . . . . . Ballistic Gun 6 | 1 1 3 . 1 . Ballistic Cannon 1 | . . 1 . . . Launcher 1 | . 1 . . . . Special Weapon 1 | . 1 . . . . Impact Weapon . | . . . . . . Slashing Weapon . | . . . . . . Piercing Weapon . | . . . . . . Special Melee Weapon . | . . . . . . Unidentified Prototypes . | . . . . . . Parts Lost 2 | . 2 . . . . Power . | . . . . . . Propulsion . | . . . . . . Utility 1 | . 1 . . . . Weapon 1 | . 1 . . . . Highest Loss Streak 1 | . 1 . . . . To Critical Strikes . | . . . . . . Average Backups 11 | 3 9 12 13 13 7 Power . | . 1 1 1 . . Propulsion . | . 1 . 1 . 1 Utility 6 | . 4 6 6 8 6 Weapon 3 | 1 2 4 5 3 . Tool/Special . | . . . . . . Unused Backups 24 | . 3 1 1 11 8 Power 1 | . 1 . . . . Propulsion 4 | . 1 . . 1 2 Utility 11 | . . . 1 4 6 Weapon 8 | . 1 1 . 6 . Tool/Special . | . . . . . . Average Slot Usage (%) 97 | . 100 99 100 99 78 Engine 8 | . 14 14 14 4 . Core 4 | . . . . 9 6 Treads 26 | . 28 27 28 28 19 Device 9 | . 11 . . 9 32 Storage 12 | . 14 14 14 14 6 Protection 6 | . 2 14 14 4 . Energy Gun 4 | . 13 6 . . . Ballistic Gun 19 | . 12 16 28 27 13 Peak Build Rating 51 | 7 10 13 14 22 51 Average Rating 17 | 6 9 10 13 17 49 On Entrance 10 | . 7 9 13 14 20 Naked Turns . | . . . . . . Heaviest Build 70 | 11 34 38 38 43 70 Greatest Support 60 | 40 40 40 40 42 60 Greatest Overweight (x) 1 | 1 . . . 1 1 Average Overweight (x) . | . . . . . . Largest Inventory Capacity 15 | 8 15 15 15 15 15 Average Capacity 14 | 7 13 15 15 15 15 Most Carried 15 | 5 12 15 15 15 13 Average Carried 12 | 3 9 12 14 14 8 Final Capacity 15 | 8 15 15 15 15 15 Final Carried 15 | 5 10 15 15 15 12 Class Distribution -------------------- 73% | Mutant 26% | Derelict-Mutant Dominant Class ---------------- Mutant | -10/Materials Mutant | -10/Subcaves Mutant | -8/Recycling Mutant | -8/Scraptown Derelict-Mutant | -6/Factory Resources | -11 -10 -10 -8 -8 -6 ----------- Run | Yrd Mat Sub Rec Scr Fac Matter Collected 1328 | 287 194 401 61 298 87 Remotely 151 | 79 . 72 . . . Salvage Created 848 | 197 386 178 . . 87 Parts 62 | 15 25 16 . . 6 Haulers Intercepted . | . . . . . . Recyclers Shooed 1 | . . . . . 1 Parts Field Recycled 26 | . . . . 21 5 Retrieved Matter 125 | . . . . 112 13 Parts Self-Destructed 13 | . . 13 . . . Prevented . | . . . . . . Kills | -11 -10 -10 -8 -8 -6 ------- Run | Yrd Mat Sub Rec Scr Fac Combat Hostiles Destroyed 22 | . 9 9 . . 4 Guns 12 | . 5 3 . . 4 Cannons 2 | . . 2 . . . AOE 8 | . 4 4 . . . Classes Destroyed 10 | 2 6 2 . . . Worker 1 | . 1 . . . . Builder 1 | . 1 . . . . Tunneler 5 | 5 . . . . . Recycler 2 | 1 1 . . . . Operator 1 | . 1 . . . . Turret 2 | . . 2 . . . Watcher 1 | . 1 . . . . Swarmer 11 | . 3 4 . . 4 Grunt 6 | . 6 . . . . Subdweller 5 | . . 5 . . . Best Kill Streak 4 | 2 4 4 . . 4 Combat Bots Only 4 | . 3 4 . . 4 Max Kills in Single Turn 3 | 1 3 2 . . 1 Gunslinging . | . . . . . . Exploded 3 | . 3 2 . . . Melee . | . . . . . . Uniques/NPCs Destroyed . | . . . . . . Combat | -11 -10 -10 -8 -8 -6 -------- Run | Yrd Mat Sub Rec Scr Fac Hostile Shots Fired 157 | . 33 92 . . 32 Missed 67 | . 17 41 . . 9 Hits 90 | . 16 51 . . 23 Projectile 90 | . 16 51 . . 23 Damage Taken 1293 | . 217 726 . . 350 Core 147 | . 33 114 . . . Absorbed by Shields . | . . . . . . Regen/Repaired (Parts) 10 | . . . . . 10 Core Remaining (%) 70 | 100 . . . 41 . Volleys Fired 115 | 17 36 50 . . 12 Largest 2 | 2 2 2 . . 2 Hottest 100 | 60 100 100 . . 60 Shots Fired 200 | 34 63 79 . . 24 Gun 154 | 34 54 42 . . 24 Cannon 14 | . . 14 . . . Launcher 14 | . 2 12 . . . Special 18 | . 7 11 . . . Kinetic 112 | 17 27 44 . . 24 Thermal 60 | 17 20 23 . . . Explosive 14 | . 2 12 . . . Electromagnetic 14 | . 14 . . . . Robot Hit Streak 9 | 6 7 9 . . 2 Robot Miss Streak 8 | 1 2 2 . . 8 Penetration Max . | . . . . . . Secondary Targets 1 | . . . . . 1 Max Gunslinging Chain 1 | . . . . . 1 Shots Hit Robots 112 | 23 35 47 . . 7 Core Hits 57 | 9 19 23 . . 6 Critical Kills . | . . . . . . Critical Parts Destroyed . | . . . . . . Critical Strikes 1 | . . 1 . . . Burn 1 | . . 1 . . . Melee Attacks . | . . . . . . Impact . | . . . . . . Slashing . | . . . . . . Piercing . | . . . . . . Sneak Attacks . | . . . . . . Combat Hostiles . | . . . . . . Follow-up Attacks . | . . . . . . Damage Inflicted 2207 | 225 786 1005 . . 191 Guns 1302 | 225 416 486 . . 175 Cannons 182 | . . 182 . . . Explosions 702 | . 365 337 . . . Melee . | . . . . . . Ramming 21 | . 5 . . . 16 Kinetic 979 | 82 166 556 . . 175 Thermal 500 | 143 245 112 . . . Explosive 544 | . 207 337 . . . Electromagnetic 163 | . 163 . . . . Impact . | . . . . . . Slashing . | . . . . . . Piercing . | . . . . . . Highest Corruption . | . . . . . . Average Corruption . | . . . . . . Corruption Purged . | . . . . . . Corruption Blocked . | . . . . . . Overload Shots . | . . . . . . Overflow Damage 24 | . 23 1 . . . Projectiles . | . . . . . . Explosions 24 | . 23 1 . . . Melee . | . . . . . . Knockbacks 5 | . . 4 . . 1 Impact 1 | . . . . . 1 Kinetic 4 | . . 4 . . . Secondary . | . . . . . . Self-Inflicted Damage 57 | . 57 . . . . Shots 3 | . 3 . . . . Rammed 4 | . 2 . . . 2 Targets Rammed 4 | . 2 . . . 2 Kicked . | . . . . . . Crushed . | . . . . . . Highest Temperature 164 | 40 164 . . . . Average Temperature 44 | 21 52 . . . . Received Heat Transfer 270 | . 72 198 . . . Siege Activations . | . . . . . . Martial Activations . | . . . . . . Shielding Activations . | . . . . . . Robots Disrupted . | . . . . . . Combat Hostiles . | . . . . . . Robots Corrupted . | . . . . . . Combat Hostiles . | . . . . . . Parts Fried . | . . . . . . Impact Corruptions . | . . . . . . Robots Melted . | . . . . . . Combat Hostiles . | . . . . . . Parts Melted . | . . . . . . Heat Transferred 1291 | 325 559 407 . . . Parts Sabotaged . | . . . . . . Parts Stolen . | . . . . . . Parts Stripped . | . . . . . . Power Chain Reactions 3 | . 3 . . . . Alert | -11 -10 -10 -8 -8 -6 ------- Run | Yrd Mat Sub Rec Scr Fac Maximum Alert Level . | . . . . . . Low Security (%) 100 | 100 100 . 100 . 100 Level 1 . | . . . . . . Level 2 . | . . . . . . Level 3 . | . . . . . . Level 4 . | . . . . . . Level 5 . | . . . . . . High Security . | . . . . . . Max Security . | . . . . . . Peak Influence 97 | 10 97 . . . 76 Initial . | . . . . . . Average 14 | . 25 . . . 9 Influence Increases 669 | 30 307 240 . . 92 Destroy 0b10 Robot/C 380 | . 180 120 . . 80 Destroy 0b10 Robot/NC 55 | 30 25 . . . . Destroy Leader 52 | . 42 . . . 10 Successful Hack 10 | . 10 . . . . Disable Machine 15 | . 15 . . . . Destroy Structure 37 | . 35 . . . 2 Lose Combat Pursuer 120 | . . 120 . . . Influence Decreases 617 | 30 228 319 . . 40 Entered New Map 39 | . . 39 . . . Time Decay 563 | 30 213 280 . . 40 Lost Part 15 | . 15 . . . . Squads Dispatched 5 | . 3 . . . 2 Investigation 2 | . 2 . . . . Extermination 1 | . . . . . 1 Reinforcement 2 | . 1 . . . 1 Assault . | . . . . . . Garrison . | . . . . . . Intercept . | . . . . . . Searches Triggered . | . . . . . . Construction Impeded . | . . . . . . Haulers Reinforced . | . . . . . . Active Scanning Responses . | . . . . . . Cargo Convoy Interrupts . | . . . . . . Stealth | -11 -10 -10 -8 -8 -6 --------- Run | Yrd Mat Sub Rec Scr Fac Distress Signals 1 | . 1 . . . . Communications Jammed . | . . . . . . Distress Signals . | . . . . . . Times Spotted 36 | . 19 13 . . 4 Peak Tracking Total 4 | . 3 4 . . 4 Tactical Retreats 2 | . . 2 . . . Traps | -11 -10 -10 -8 -8 -6 ------- Run | Yrd Mat Sub Rec Scr Fac Traps Triggered 2 | . 2 . . . . Indirectly . | . . . . . . Trap Hack Attempts . | . . . . . . Triggered . | . . . . . . Disarmed . | . . . . . . Reprogrammed . | . . . . . . Reused . | . . . . . . Traps Extracted . | . . . . . . Installed . | . . . . . . Triggered . | . . . . . . Most Traps Carried 1 | . . . . 1 1 Machines | -11 -10 -10 -8 -8 -6 ---------- Run | Yrd Mat Sub Rec Scr Fac Machines Disabled 4 | . 1 3 . . . Max in Single Turn 2 | . 1 2 . . . Machines Repaired . | . . . . . . Machines Dismantled . | . . . . . . Machines Sabotaged . | . . . . . . Overloaded Fab Kills . | . . . . . . Hacking | -11 -10 -10 -8 -8 -6 --------- Run | Yrd Mat Sub Rec Scr Fac Machines Accessed 8 | . 6 . . 2 . Terminals 6 | . 6 . . . . Fabricators . | . . . . . . Repair Stations . | . . . . . . Recycling Units . | . . . . . . Scanalyzers . | . . . . . . Garrison Access . | . . . . . . Total Hacks 18 | . 14 . . 4 . Successful 11 | . 7 . . 4 . Failed 7 | . 7 . . . . Catastrophic . | . . . . . . Database Lockouts . | . . . . . . Manual 12 | . 12 . . . . Terminals 14 | . 14 . . . . Fabricators . | . . . . . . Repair Stations . | . . . . . . Recycling Units . | . . . . . . Scanalyzers . | . . . . . . Garrison Access . | . . . . . . Terminal Hacks 6 | . 2 . . 4 . Record 3 | . . . . 3 . Prototype ID Bank 1 | . 1 . . . . Terminal Index 1 | . 1 . . . . Proto ID Catalog 1 | . . . . 1 . Fabricator Hacks . | . . . . . . Repair Station Hacks . | . . . . . . Recycling Unit Hacks . | . . . . . . Scanalyzer . | . . . . . . Garrison Access Hacks . | . . . . . . Unauthorized Hacks 5 | . 5 . . . . Terminals 5 | . 5 . . . . Skim 5 | . 5 . . . . Fabricators . | . . . . . . Repair Stations . | . . . . . . Recycling Units . | . . . . . . Scanalyzers . | . . . . . . Garrison Access . | . . . . . . Data Cores Recovered 1 | . 1 . . . . Used . | . . . . . . Hacking Detections 5 | . 5 . . . . Full Trace Events . | . . . . . . Feedback Events . | . . . . . . Feedback Blocked . | . . . . . . Robot Schematics Acquired . | . . . . . . Robots Built . | . . . . . . Authchips . | . . . . . . Time . | . . . . . . Total Robot Build Rating . | . . . . . . Part Schematics Acquired . | . . . . . . Parts Built . | . . . . . . Authchips . | . . . . . . Time . | . . . . . . Total Part Build Rating . | . . . . . . Parts Repaired . | . . . . . . Time . | . . . . . . Parts Recycled . | . . . . . . Recycled Matter . | . . . . . . Retrieved Matter . | . . . . . . Retrieved Components . | . . . . . . Parts Scanalyzed . | . . . . . . Part Schematics Acquired . | . . . . . . Parts Damaged . | . . . . . . Bothacking | -11 -10 -10 -8 -8 -6 ------------ Run | Yrd Mat Sub Rec Scr Fac Used RIF Installer . | . . . . . . Robots Hacked . | . . . . . . Non-combat . | . . . . . . Combat . | . . . . . . Robot Hacks Applied . | . . . . . . Relay Couplers Released . | . . . . . . Fabnet Peak Effective % . | . . . . . . Robots Rewired . | . . . . . . Allies Hacked . | . . . . . . Hacks Repelled . | . . . . . . Allies | -11 -10 -10 -8 -8 -6 -------- Run | Yrd Mat Sub Rec Scr Fac Total Allies . | . . . . . . Largest Group . | . . . . . . Highest-Rated Group . | . . . . . . Highest-Rated Ally . | . . . . . . Total Orders 4 | . . . . . 4 STAY 1 | . . . . . 1 EXPLORE 2 | . . . . . 2 RETURN 1 | . . . . . 1 Ally Attacks . | . . . . . . Total Damage . | . . . . . . Kills . | . . . . . . Allies Corrupted . | . . . . . . Allies Melted . | . . . . . . Intel | -11 -10 -10 -8 -8 -6 ------- Run | Yrd Mat Sub Rec Scr Fac Active Infowar (turns) 722 | . 722 . . . . Terrain 722 | . 722 . . . . Robot Analysis Total . | . . . . . . Derelict Logs Recovered 7 | . . 2 . 5 . Drone Launches 2 | . . . . . 2 Drone Recoveries 2 | . . . . . 2 Exploration | -11 -10 -10 -8 -8 -6 ------------- Run | Yrd Mat Sub Rec Scr Fac Turns Passed 4910 | 234 899 1338 175 1636 628 Spaces Moved 2473 | 103 460 716 107 880 207 Core 5 | 5 . . . . . Treads 2468 | 98 460 716 107 880 207 Legs . | . . . . . . Wheels . | . . . . . . Hover . | . . . . . . Flight . | . . . . . . Fastest Speed 50 | 50 160 160 160 142 148 Average Speed 170 | 156 160 160 160 179 200 Slowest Speed 240 | 160 160 160 160 240 232 Overloaded Moves . | . . . . . . Propulsion Burnouts . | . . . . . . Robots Hopped . | . . . . . . Potential Cave-ins . | . . . . . . Cave-ins Triggered . | . . . . . . Exploration Rate (%) 39 | 8 73 45 22 76 10 Regions Visited 5 Branch Regions 3 Pre-discovered Areas 6 | . 2 1 . 3 . Known Exits Taken 1 | . 1 . . . . Unknown Exits Taken 4 | 1 . 1 1 1 . Scrap Searched 5 | . . 2 . 3 . Spaces Dug 7 | . 7 . . . . Terrain Destroyed 58 | . 32 26 . . . Melee . | . . . . . . Projectile 7 | . 7 . . . . AOE 51 | . 25 26 . . . Terrain Rammed . | . . . . . . Walls Destroyed . | . . . . . . Machines Disabled . | . . . . . . Actions | -11 -10 -10 -8 -8 -6 --------- Run | Yrd Mat Sub Rec Scr Fac Total 2940 | 142 545 806 112 941 394 Wait 200 | 11 11 6 . 8 164 Move 2468 | 102 459 715 106 879 207 Hop . | . . . . . . Pick Up 46 | 5 12 9 3 15 2 Fast Attach 16 | 7 . 4 . 5 . Attach 10 | . 2 2 . 1 5 Detach 1 | . . . . . 1 Swap 32 | . 15 10 . 7 . Drop 48 | . 8 10 3 26 1 Fire 115 | 17 36 50 . . 12 Melee . | . . . . . . Ram . | . . . . . . Kick . | . . . . . . Crush 4 | . 2 . . . 2 Escape Stasis . | . . . . . . Rewire . | . . . . . . Trap . | . . . . . . Miscellaneous . | . . . . . . Route ------- -11/Scrapyard -10/Materials (discovered 5 exits: *Mat x3 / [*Min] / *Sub) -10/Subcaves -8/Recycling -8/Scraptown (discovered 2 exits: [*Fac x2]) -6/Factory (discovered 1 exit: *Low) History --------- Turn | Location | Event 14 | -11/Scrapyard | Discovered new exit (range 15) 235 | -11/Scrapyard | Entered Materials 308 | -10/Materials | Build established: Mutant 450 | -10/Materials | Discovered new exit (range 16) 544 | -10/Materials | Discovered new exit (range 16) 618 | -10/Materials | Discovered new exit (range 15) 1045 | -10/Materials | Identified exit to Materials 1045 | -10/Materials | Identified exit to Subcaves 1073 | -10/Materials | Learned Storage stockpile data 1092 | -10/Materials | Learned location of 1 exit from Storage 1102 | -10/Materials | Learned location of Subcaves (-10) 1134 | -10/Materials | Entered Subcaves 1179 | -10/Subcaves | Discovered new exit (range 12) 1235 | -10/Subcaves | Learned 8 Materials zone layouts 1550 | -10/Subcaves | A swath of the cavern ceiling suddenly collapsed 2214 | -10/Subcaves | Shifting Twisted Machinery released Sub. Machine Gun 2251 | -10/Subcaves | Core integrity fell below 50% 2472 | -10/Subcaves | Entered Recycling 2608 | -8/Recycling | Scanned before Scraplab entrance 2631 | -8/Recycling | Entered Scraplab 2643 | -8/Recycling | Discovered new exit (range 2) 2647 | -8/Recycling | Entered Scraptown 2715 | -8/Scraptown | Visited Spacefarers 2779 | -8/Scraptown | Scanned Subdweller tech in exchange for log data 2782 | -8/Scraptown | Learned location of Armory (-4) 2783 | -8/Scraptown | Learned location of Warlord (-4) 2785 | -8/Scraptown | Learned 12 Factory zone layouts 2787 | -8/Scraptown | Learned location of Testing (-2) 2788 | -8/Scraptown | Learned location of 1 exit from Research 2804 | -8/Scraptown | Discovered new exit (range 11) 3249 | -8/Scraptown | Visited UFD Registry 3249 | -8/Scraptown | Registered with UFD as "Cryocoil" 3292 | -8/Scraptown | Visited Abandonware Association 3316 | -8/Scraptown | Learned abandonware demo "OVRCLOCK.EXE" 3341 | -8/Scraptown | Learned abandonware demo "MELTYB.EXE" 3385 | -8/Scraptown | Visited Science Guys 3450 | -8/Scraptown | Visited Chapter 10 3485 | -8/Scraptown | Visited Scrapoid Pod Storage 3499 | -8/Scraptown | Found Scrapoid Pod 3526 | -8/Scraptown | Visited Derelict Rescue Squad 3546 | -8/Scraptown | Visited Infowarlord's Domain 3555 | -8/Scraptown | Found Exp. Sensor Array 3583 | -8/Scraptown | Visited DA-N13 Charitable Foundation 3589 | -8/Scraptown | Found DCF Scrap (28 items) 3762 | -8/Scraptown | Visited Observation Area 3854 | -8/Scraptown | Visited Junk Cannon Lab 3902 | -8/Scraptown | Build established: Derelict-Mutant 3919 | -8/Scraptown | Visited Cartography Club 3967 | -8/Scraptown | Found Surveybot 17 Chip 4124 | -8/Scraptown | Met Optimus 4124 | -8/Scraptown | Accepted into 0bPrime 4238 | -8/Scraptown | Found Scrap Suit 4243 | -8/Scraptown | Found Scrap Suit 4278 | -8/Scraptown | Discovered new exit (range 3) 4283 | -8/Scraptown | Entered Factory 4283 | -6/Factory | Evolved 8 slots: Propulsion x1, Utility x7 4284 | -6/Factory | Identified exit to Lower Caves 4911 | -6/Factory | Self-destructed Last Messages --------------- Module, recycling 1 matter... 04858_ K-01 Serf collects debris. 04859_ Field Recycling Unit collects VTOL Module, recycling 2 matter... 04860_ Acquired 24 matter. 04861_ K-01 Serf collects debris. 04864_ Acquired 5 matter. 04866_ Field Recycling Unit collects VTOL Module, recycling 2 matter... 04867_ K-01 Serf cleans the Nuclear Reactor. 04868_ Field Recycling Unit collects Autogun, recycling 8 matter... 04870_ K-01 Serf cleans the Nuclear Reactor. 04873_ K-01 Serf collects debris. 04883_ Acquired 13 matter. 04885_ Acquired 18 matter. 04886_ K-01 Serf collects debris. 04909_ Slammed into K-01 Serf. 04909_ K-01 Serf knocked back. 04911_ Scrap Suit secures Hpw. Shock Rifle. Map ----- +----------------------------------------------------+ | # """"####?#????????? ??? ???? ???? """ | | ## """"## ??????????????????????#??######### | | ## """"## ???????? ?????????"???##?????????? | | ## """"## ? ??????????????? ???????????????? | | ## """"## ? ?????##???????#??#?????????????? | | ## """"## ????#??????#????????????#??#?????? | | ## ## "??????????#????#????#????????????? | | #### ## "????##??##?#??????#??????#???????? | | #??# ## "?? ??????????#??#?#???##?????????? | | #??# ## ?????#????#???????#??????????????? | | ############ ???############?#???#????????????? | | # ## ? ?# ########????#???????? | | # ## ???# # #?????????????? | | # ###+#?## # ############### | | ## #?# ??## + " | | ## ### ?#?# """ """ # ########### ### | | ## #?# ???# """ """ # #??#?##?### #?? | | ####+######### ?#?# """ """ ## ##??##?#?### ##? | | ???# ## ##?#??????# ## | | ???############ ###########!> | | ######????# # # ## ## | | #???#???#?# """ """ # # ###+### | | #### #????##??## """ """ # # # | | ## #???#?????# """ """ # # # | | " ## ######?#### + + # | | " ## Rkku/k @ # # #!! | | " ## ####?#### ! # # #!!! | | ## #????#??# # # #!! | | ## ####???############ # ####### | | ## # ""??????" """" + ##########??#??? | | ## # ""?????"" """" # #?#?????###???#? | | #### + ""?"????" """" # #? ??? ???????? | | ???# # ""??????? """" # #????? ????????? | | ???# # ??????? *# #? ""???????? ?? | | ???# # ??? ?? # +?????"???? ???? | | ??## # ????? ! # #? ????"? ?????? | | ??# ####?????########## #???????"??????? | | ### #??##???????????##+##???#??????????? | | #??????????? ? ???? ? ? ? ????????? | | #?????????? ?????? ????????????????? | | #??????????"?????????? ????????????? | | ###############?????#?????????"????????????#?????? | | ??????????????????????#??????????????????????????? | | ?????????????????#?????? ?????????? ?????????????? | | ?????????????????????????????????????????????????? | | ????????????????????????#????????????????????????? | | | | | | | | | +----------------------------------------------------+ Best States ------------- Heat Dissipation 37 Energy Generation 18 Energy Capacity 310 Matter Stores 300 Matter Capacity 300 Sight Range 16 Terrain Scan Range 16 Terrain Scan Density 10 Armor Coverage 150 Evasion (%) 40 Recoil Reduction 3 Item Schematics ----------------- None Robot Schematics ------------------ None Fabricated ------------ Nothing Repaired ---------- Nothing Alien Tech Used ----------------- None Achievements -------------- None Challenges ------------ None Game ------ Seed TiamatShrapnelClaw Manual? 0 Play Time 00:35:51 Cumulative 184.5 hours Start 2025.08.09 @ 11:44:57 End 2025.08.12 @ 22:20:01 Sessions 3 Manual Loads 0 Difficulty Rogue Special Mode None Game No. 162 Rogue 123 Adventurer 32 Explorer 7 Win Type - Total 2 Types 2/0/0/0/0/0/0/0/0/0 Lore% 46 Gallery% 63 Achievement% 54 Wizard Run 0 Options --------- Layout 1 ASCII 0 Keyboard 0 Movement Numpad Keybinds 0 Fullscreen 1 Font 24/Smallcaps Map View 50x35 Zoom Use 0% Tactical HUD 1 Map Filters NONE Filters NONE Steam 1 RUN: 18a362c2-56cc-405f-83ce-f306ec617dec